Cogmind - Beta 10.2 @@@ ROGUE MODE // 2021.03.24 @ 11:34:22 Player: ChromeKnight Result: Destroyed by D-53 Grenadier with Mini Grenade Launcher Performance ------------- Evolutions (0) 0 Regions Visited (2) 400 Robots Destroyed (1) 5 Value Destroyed (53) 53 Prototype IDs (0) 0 Alien Tech Used (0) 0 Bonus (0) 0 TOTAL SCORE: 458 Bonus ------- None Cogmind --------- Core Integrity 0/250 Matter 172/300 Energy 250/250 System Corruption 0% Temperature Cool (23) Movement Core (450) Ox8 Location -10/Mines Parts ------- > --- POWER (1) -------- Ion Engine > --- PROPULSION (2) --- (None) > --- UTILITY (2) ------ Large Storage Unit > --- WEAPON (2) ------- Flak Cannon > --- INVENTORY (10) --- Heavy Armor Plating Thief Drone Bay Medium Laser Grenade Launcher Heavy Mace Peak State ------------ > --- POWER ------------ Ion Engine > --- PROPULSION ------- Wheel Wheel > --- UTILITY ---------- Large Storage Unit > --- WEAPON ----------- Assault Rifle Flak Cannon > --- INVENTORY -------- Heavy Armor Plating Medium Laser Grenade Launcher Heavy Mace [Rating: 9] Favorites ----------- Power Ion Engine Engine Ion Engine Propulsion Wheel Wheel Wheel Utility Large Storage Unit Storage Large Storage Unit Weapon Assault Rifle Ballistic Gun Assault Rifle Ballistic Cannon Flak Cannon Build | -11 -10 -10 ------- Run | Scr Mat Min Slots Evolved . | . . . Power . | . . . Propulsion . | . . . Utility . | . . . Weapon . | . . . Parts Attached 10 | 6 3 1 Power 1 | 1 . . Engine 1 | 1 . . Core . | . . . Reactor . | . . . Propulsion 2 | 2 . . Treads . | . . . Leg . | . . . Wheel 2 | 2 . . Hover . | . . . Flight . | . . . Utility 4 | 1 3 . Device . | . . . Storage 4 | 1 3 . Processor . | . . . Hackware . | . . . Protection . | . . . Artifact . | . . . Weapon 3 | 2 . 1 Energy Gun . | . . . Energy Cannon . | . . . Ballistic Gun 2 | 2 . . Ballistic Cannon 1 | . . 1 Launcher . | . . . Special Weapon . | . . . Impact Weapon . | . . . Slashing Weapon . | . . . Piercing Weapon . | . . . Special Melee Weapon . | . . . Unidentified Prototypes . | . . . Parts Lost 3 | . . 3 Power . | . . . Propulsion 2 | . . 2 Utility . | . . . Weapon 1 | . . 1 Highest Loss Streak 3 | . . 3 Average Slot Usage (%) 80 | . 85 77 Engine 14 | . 14 14 Wheel 25 | . 28 23 Storage 14 | . 14 14 Ballistic Gun 20 | . 28 14 Ballistic Cannon 6 | . . 10 Naked Turns . | . . . Heaviest Build 29 | 13 25 29 Greatest Support 20 | 20 20 20 Greatest Overweight (x) 2 | 2 1 1 Average Overweight (x) . | . . 1 Largest Inventory Capacity 14 | 6 14 10 Average Capacity 8 | 5 8 10 Most Carried 6 | 1 3 6 Average Carried 2 | . 1 4 Final Capacity 10 | 6 10 10 Final Carried 6 | 1 2 6 Class Distribution -------------------- 100% | Mutant Dominant Class ---------------- Mutant | -10/Materials Mutant | -10/Mines Resources | -11 -10 -10 ----------- Run | Scr Mat Min Matter Collected 208 | 208 . . Remotely . | . . . Salvage Created 26 | . . 26 Parts . | . . . Haulers Intercepted . | . . . Recyclers Shooed . | . . . Parts Field Recycled . | . . . Retrieved Matter . | . . . Parts Self-Destructed . | . . . Prevented . | . . . Kills | -11 -10 -10 ------- Run | Scr Mat Min Combat Hostiles Destroyed 1 | . . 1 Cannons 1 | . . 1 Classes Destroyed 1 | . . 1 Demolisher 1 | . . 1 Best Kill Streak 1 | . . 1 Combat Bots Only 1 | . . 1 Max Kills in Single Turn 1 | . . 1 Gunslinging . | . . . Exploded . | . . . Melee . | . . . Uniques/NPCs Destroyed . | . . . Combat | -11 -10 -10 -------- Run | Scr Mat Min Damage Taken 761 | . 141 620 Core 272 | . 9 263 Absorbed by Shields . | . . . Core Remaining (%) 100 | 100 . . Volleys Fired 7 | . . 7 Largest 2 | . . 2 Hottest 64 | . . 64 Shots Fired 10 | . . 10 Gun 3 | . . 3 Cannon 7 | . . 7 Launcher . | . . . Special . | . . . Kinetic 10 | . . 10 Thermal . | . . . Explosive . | . . . Electromagnetic . | . . . Robot Hit Streak 2 | . . 2 Robot Miss Streak 6 | . . 6 Penetration Max . | . . . Secondary Targets . | . . . Shots Hit Robots 8 | . . 8 Core Hits 9 | . . 9 Critical Hits . | . . . Critical Kills . | . . . Critical Parts Destroyed . | . . . Melee Attacks . | . . . Impact . | . . . Slashing . | . . . Piercing . | . . . Sneak Attacks . | . . . Combat Hostiles . | . . . Follow-up Attacks . | . . . Damage Inflicted 109 | . . 109 Guns 14 | . . 14 Cannons 95 | . . 95 Explosions . | . . . Melee . | . . . Ramming . | . . . Kinetic 109 | . . 109 Thermal . | . . . Explosive . | . . . Electromagnetic . | . . . Impact . | . . . Slashing . | . . . Piercing . | . . . Highest Corruption . | . . . Average Corruption . | . . . Corruption Purged . | . . . Overload Shots . | . . . Overflow Damage . | . . . Projectiles . | . . . Explosions . | . . . Melee . | . . . Knockbacks 1 | . . 1 Impact . | . . . Kinetic 1 | . . 1 Secondary . | . . . Self-Inflicted Damage . | . . . Shots . | . . . Rammed . | . . . Targets Rammed . | . . . Kicked . | . . . Crushed . | . . . Highest Temperature 23 | . . 23 Average Temperature 10 | . . 10 Received Heat Transfer 6 | . 6 . Siege Activations . | . . . Robots Corrupted . | . . . Combat Hostiles . | . . . Parts Fried . | . . . Impact Corruptions . | . . . Robots Melted . | . . . Combat Hostiles . | . . . Parts Melted . | . . . Heat Transferred . | . . . Parts Sabotaged . | . . . Parts Stolen . | . . . Parts Stripped . | . . . Power Chain Reactions . | . . . Missiles Intercepted . | . . . Alert | -11 -10 -10 ------- Run | Scr Mat Min Peak Influence 20 | . 5 20 Initial 1 | . . 1 Average 2 | . 4 1 Maximum Alert Level . | . . . Low Security (%) 100 | 100 100 100 Level 1 . | . . . Level 2 . | . . . Level 3 . | . . . Level 4 . | . . . Level 5 . | . . . High Security . | . . . Max Security . | . . . Squads Dispatched 1 | . . 1 Investigation 1 | . . 1 Extermination . | . . . Reinforcement . | . . . Assault . | . . . Garrison . | . . . Intercept . | . . . Construction Impeded . | . . . Haulers Reinforced . | . . . Stealth | -11 -10 -10 --------- Run | Scr Mat Min Distress Signals . | . . . Communications Jammed . | . . . Distress Signals . | . . . Times Spotted 8 | . 6 2 Peak Tracking Total 8 | . 8 2 Tactical Retreats . | . . . Traps | -11 -10 -10 ------- Run | Scr Mat Min Traps Triggered . | . . . Indirectly . | . . . Trap Hack Attempts . | . . . Triggered . | . . . Disarmed . | . . . Reprogrammed . | . . . Reused . | . . . Traps Extracted . | . . . Installed . | . . . Triggered . | . . . Machines | -11 -10 -10 ---------- Run | Scr Mat Min Machines Disabled . | . . . Max in Single Turn . | . . . Machines Sabotaged . | . . . Garrisons Compromised . | . . . Overloaded Fab Kills . | . . . Fab Network Shutdowns . | . . . Hacking | -11 -10 -10 --------- Run | Scr Mat Min Machines Accessed 3 | . 1 2 Terminals 1 | . 1 . Fabricators . | . . . Repair Stations . | . . . Recycling Units . | . . . Scanalyzers . | . . . Garrison Access . | . . . Total Hacks 3 | . 1 2 Successful 3 | . 1 2 Failed . | . . . Catastrophic . | . . . Database Lockouts . | . . . Manual . | . . . Terminals 1 | . 1 . Fabricators . | . . . Repair Stations . | . . . Recycling Units . | . . . Scanalyzers . | . . . Garrison Access . | . . . Terminal Hacks 3 | . 1 2 Open Door 2 | . . 2 Zone Layout 1 | . 1 . Fabricator Hacks . | . . . Repair Station Hacks . | . . . Recycling Unit Hacks . | . . . Scanalyzer . | . . . Garrison Access Hacks . | . . . Unauthorized Hacks . | . . . Terminals . | . . . Fabricators . | . . . Repair Stations . | . . . Recycling Units . | . . . Scanalyzers . | . . . Garrison Access . | . . . Data Cores Recovered . | . . . Used . | . . . Hacking Detections . | . . . Full Trace Events . | . . . Feedback Events . | . . . Feedback Blocked . | . . . Robot Schematics Acquired . | . . . Robots Built . | . . . Matter . | . . . Time . | . . . Total Robot Build Rating . | . . . Part Schematics Acquired . | . . . Parts Built . | . . . Matter . | . . . Time . | . . . Total Part Build Rating . | . . . Parts Repaired . | . . . Time . | . . . Parts Recycled . | . . . Recycled Matter . | . . . Retrieved Matter . | . . . Retrieved Components . | . . . Parts Scanalyzed . | . . . Part Schematics Acquired . | . . . Parts Damaged . | . . . Bothacking | -11 -10 -10 ------------ Run | Scr Mat Min Used RIF Installer . | . . . Robots Hacked . | . . . Non-combat . | . . . Combat . | . . . Robot Hacks Applied . | . . . Relay Couplers Released . | . . . Robots Rewired . | . . . Allies Hacked . | . . . Hacks Repelled . | . . . Allies | -11 -10 -10 -------- Run | Scr Mat Min Total Allies . | . . . Largest Group . | . . . Highest-Rated Group . | . . . Highest-Rated Ally . | . . . Total Orders . | . . . Ally Attacks . | . . . Total Damage . | . . . Kills . | . . . Allies Corrupted . | . . . Allies Melted . | . . . Intel | -11 -10 -10 ------- Run | Scr Mat Min Robot Analysis Total . | . . . Derelict Logs Recovered . | . . . Drone Launches . | . . . Drone Recoveries . | . . . Exploration | -11 -10 -10 ------------- Run | Scr Mat Min Turns Passed 211 | 54 72 85 Spaces Moved 198 | 52 77 69 Core 8 | 8 . . Treads . | . . . Legs . | . . . Wheels 190 | 44 77 69 Hover . | . . . Flight . | . . . Fastest Speed 50 | 50 80 90 Average Speed 86 | 84 84 90 Slowest Speed 150 | 150 90 90 Overloaded Moves . | . . . Propulsion Burnouts . | . . . Robots Hopped . | . . . Cave-ins Triggered . | . . . Exploration Rate (%) 13 | 4 22 14 Regions Visited 2 Branch Regions 1 Pre-discovered Areas . | . . . Known Exits Taken . | . . . Unknown Exits Taken 2 | 1 1 . Scrap Searched . | . . . Spaces Dug . | . . . Terrain Destroyed . | . . . Melee . | . . . Projectile . | . . . AOE . | . . . Terrain Rammed . | . . . Walls Destroyed . | . . . Machines Disabled . | . . . Actions | -11 -10 -10 --------- Run | Scr Mat Min Total 223 | 58 83 82 Wait 1 | . . 1 Move 196 | 51 76 69 Hop . | . . . Pick Up 5 | 1 1 3 Fast Attach 9 | 6 2 1 Attach . | . . . Detach . | . . . Swap 1 | . 1 . Drop 4 | . 3 1 Fire 7 | . . 7 Melee . | . . . Ram . | . . . Kick . | . . . Crush . | . . . Escape Stasis . | . . . Rewire . | . . . Trap . | . . . Miscellaneous . | . . . Route ------- -11/Scrapyard -10/Materials -10/Mines History --------- Turn | Location | Event 21 | -11/Scrapyard | Discovered new exit (range 16) 55 | -11/Scrapyard | Entered Materials 118 | -10/Materials | Discovered new exit (range 9) 127 | -10/Materials | Entered Mines 131 | -10/Mines | Met a Derelict shopkeep closing up shop 169 | -10/Mines | Assembled infested the area 186 | -10/Mines | Found the Drone Emporium 189 | -10/Mines | Found Prototype Device 205 | -10/Mines | Core integrity fell below 50% 207 | -10/Mines | Core integrity fell below 20% 212 | -10/Mines | Destroyed by D-53 Grenadier with Mini Grenade Launcher Last Messages --------------- 00185_ Connecting with SHOP.Sys... >>Open Door Sealed Doors opened. 00186_ DA-7OT(g): "Well that was anticlimactic. Heard you outside and thought you were from the Merchants Guild. I haven't even officially opened my Drone Emporium yet but am totally ready to tell them where they can shove that C&D." 00188_ DA-7OT(g): "I'm a fan of the free market. Free drones for all! No strings attached!" 00189_ Acquired Prototype Device. 00196_ C-30 ARC bursts open, deploying its payload. 00196_ D-53 Grenadier unfolds itself. 00196_ Wheel destroyed. 00196_ SHOP.Sys disabled. 00200_ DA-7OT(g) destroyed. 00200_ Machine disabled. 00202_ Assault Rifle destroyed. 00204_ Wheel destroyed. 00205_ D-53 Grenadier knocked back. 00207_ D-53 Grenadier destroyed. 00210_ U-05 Engineer lays Concrete. Map ----- +----------------------------------------------------+ | ????????????????????????????????????????????? | | ????????????????????????????????????????????? | | ????????????????????????????????????????????? | | ????????????????????????????????????????????? | | ????????????????????????????????????????????? | | ????????????????????????????????????????????? | | ????????????????????????????????????????????? | | ?????????????????####?????###???????????????? | | ?????????????????# %?????? #???????????????? | | ?????????????????# #??????# #???????????????? | | ?????????????##### ####???# #???????????????? | | ???????####?## ##### #???????????????? | | ???????#"!### #???????????????? | | ???????#" !# ##### #???????????????? | | ???????#" #???# #???????????????? | | ???????#"[ [ #???# #???????????????? | | ???????#"! #X #???# #???????????????? | | ???????#"!### #???# #???????????????? | | ???????####?## #???# #???????????????? | | ?????????????# #???# #???????????????? | | ?????????????###########??# #???????????????? | | ????????????????## ##?# #???????????????? | | ??????????????### ### #???????????????? | | ?????????????## ## #???????????????? | | ????????????##" ## #???????????????? | | ????????????#" @ ## #???????????????? | | ????????????#" % ##??????????????? | | ????????????#" #??????????????? | | ????????????#" = % #??????????????? | | ????????????##" d ##??????????????? | | ?????????????# ### ##???????????????? | | ?????????????#???# u ##????????????????? | | ????????????????# #?????????????????? | | ????????????????# #?????????????????? | | ????????????????## ????????????????? | | ?????????????????##### ???????????????? | | ?????????????????????# ####??????????????? | | ?????????????????????# ?????????????????? | | ?????????????????????## ????????????????? | | ??????????????????????## ????????????????? | | ???????????????????????# ?????????????????? | | ???????????????????????# #?????????????????? | | ???????????????????????? ??????????????????? | | ???????????????????????? ??????????????????? | | ????????????????????????????????????????????? | | ????????????????????????????????????????????? | | ????????????????????????????????????????????? | | ????????????????????????????????????????????? | | ????????????????????????????????????????????? | | ????????????????????????????????????????????? | +----------------------------------------------------+ Best States ------------- Heat Dissipation 25 Energy Generation 10 Energy Capacity 250 Matter Stores 248 Matter Capacity 300 Sight Range 16 Terrain Scan Density 10 Evasion (%) 44 Item Schematics ----------------- None Robot Schematics ------------------ None Fabricated ------------ Nothing Alien Tech Used ----------------- None Achievements -------------- None Challenges ------------ None Game ------ Seed ScanPhasingBoregun Manual? 0 Play Time 00:03:52 Cumulative 86.5 hours Start 2021.03.24 @ 11:31:41 End 2021.03.24 @ 11:34:22 Sessions 1 Manual Loads 0 Difficulty Rogue Special Mode None Game No. 229 Rogue 76 Adventurer 148 Explorer 5 Win Type - Total 1 Types 1/0/0/0/0/0/0/0/0 Lore% 55 Gallery% 64 Achievement% 51 Wizard Run 0 Options --------- ASCII 0 Keyboard 0 Movement Numpad Keybinds 0 Fullscreen 1 Font 14/X11 Map View 84x54 Tactical HUD 1 Map Filters NONE Filters NONE Steam 1 RUN: 6ebf906d-a5fb-455f-9f4b-aedab73bb217